[Event "Early-Titled-Tuesday-Blitz-April-23-2024"]
[Site "Chess.com"]
[Date "2024.04.23"]
[Round "5"]
[White "Veleamater"]
[Black "KononenkoD"]
[Result "0-1"]
[WhiteElo "2446"]
[BlackElo "2609"]
[TimeControl "180+1"]
[EndTime "8:57:34 PDT"]
[Termination "KononenkoD won by resignation"]

1. g3 {[%clk 0:03:00.9]} 1... c5 {[%clk 0:02:58.8]} 2. Bg2 {[%clk 0:03:00.6]}
2... Nc6 {[%clk 0:02:59.4]} 3. d3 {[%clk 0:03:01.3]} 3... g6 {[%clk 0:02:59.1]}
4. Nc3 {[%clk 0:03:01.8]} 4... Bg7 {[%clk 0:02:59.6]} 5. e4 {[%clk 0:03:02.4]}
5... e6 {[%clk 0:02:58.5]} 6. f4 {[%clk 0:03:02.7]} 6... Nge7 {[%clk 0:02:59]}
7. Nf3 {[%clk 0:03:03.3]} 7... d5 {[%clk 0:02:59.5]} 8. O-O {[%clk 0:03:02]}
8... O-O {[%clk 0:02:56.5]} 9. g4 {[%clk 0:03:02]} 9... c4 {[%clk 0:02:41.2]}
10. g5 {[%clk 0:02:58.4]} 10... cxd3 {[%clk 0:02:40.1]} 11. cxd3 {[%clk
0:02:58]} 11... dxe4 {[%clk 0:02:40.3]} 12. dxe4 {[%clk 0:02:57.5]} 12... e5
{[%clk 0:02:36.3]} 13. Be3 {[%clk 0:02:34.1]} 13... Bg4 {[%clk 0:02:32.3]} 14.
Qa4 {[%clk 0:02:24.2]} 14... exf4 {[%clk 0:02:28.8]} 15. Bxf4 {[%clk 0:02:21.7]}
15... Qb6+ {[%clk 0:02:25.5]} 16. Kh1 {[%clk 0:02:07.6]} 16... Qxb2 {[%clk
0:02:25.7]} 17. Nd5 {[%clk 0:02:04.8]} 17... Qxa1 {[%clk 0:02:17.6]} 18. Rxa1
{[%clk 0:02:03.3]} 18... Bxa1 {[%clk 0:02:17.9]} 19. Nxe7+ {[%clk 0:01:59]}
19... Nxe7 {[%clk 0:02:15.5]} 20. Be5 {[%clk 0:01:58.8]} 20... Rac8 {[%clk
0:01:48.1]} 21. h3 {[%clk 0:01:58.4]} 21... Bxf3 {[%clk 0:01:27.1]} 22. Bxa1
{[%clk 0:01:39]} 22... Rc1+ {[%clk 0:01:27.4]} 23. Kh2 {[%clk 0:01:39.1]} 23...
Rxa1 {[%clk 0:01:08.6]} 24. Bxf3 {[%clk 0:01:38.1]} 24... Rd8 {[%clk 0:01:09.1]}
25. Qxa7 {[%clk 0:01:18.6]} 25... Nc6 {[%clk 0:01:04.8]} 26. Qxb7 {[%clk
0:01:02.4]} 26... Ne5 {[%clk 0:01:04.4]} 27. Bg2 {[%clk 0:00:43.8]} 27... Rxa2
{[%clk 0:00:58.3]} 28. Qe7 {[%clk 0:00:33.8]} 28... Nc6 {[%clk 0:00:48.5]} 29.
Qf6 {[%clk 0:00:33.5]} 29... Rc2 {[%clk 0:00:38.5]} 30. e5 {[%clk 0:00:07.1]}
30... Rdd2 {[%clk 0:00:33.6]} 31. Kh1 {[%clk 0:00:05.6]} 31... Rxg2 {[%clk
0:00:28.2]} 32. e6 {[%clk 0:00:04.8]} 32... Rh2+ {[%clk 0:00:27.4]} 33. Kg1
{[%clk 0:00:04.4]} 33... Rcg2+ {[%clk 0:00:28.1]} 34. Kf1 {[%clk 0:00:04]} 34...
Rf2+ {[%clk 0:00:28.8]} 35. Qxf2 {[%clk 0:00:03.9]} 35... Rxf2+ {[%clk
0:00:29.4]} 36. Kxf2 {[%clk 0:00:04.8]} 36... fxe6 {[%clk 0:00:29.7]} 37. Ke3
{[%clk 0:00:05.6]} 37... Kf7 {[%clk 0:00:29.8]} 38. Ke4 {[%clk 0:00:06.5]} 38...
Ne7 {[%clk 0:00:30]} 39. Kf4 {[%clk 0:00:07.4]} 39... Nf5 {[%clk 0:00:30.6]} 40.
Kg4 {[%clk 0:00:07.1]} 40... e5 {[%clk 0:00:30.5]} 41. Kf3 {[%clk 0:00:06.9]}
41... Ke6 {[%clk 0:00:30.9]} 42. Ke4 {[%clk 0:00:07.2]} 42... Nd6+ {[%clk
0:00:31.5]} 43. Kf3 {[%clk 0:00:07.3]} 43... Kf5 {[%clk 0:00:32.2]} 44. Kg3
{[%clk 0:00:07.8]} 44... e4 {[%clk 0:00:32.1]} 0-1

[Event "Early-Titled-Tuesday-Blitz-April-23-2024"]
[Site "Chess.com"]
[Date "2024.04.23"]
[Round "5"]
[White "aljado"]
[Black "ljuks68"]
[Result "1-0"]
[WhiteElo "2167"]
[BlackElo "2374"]
[TimeControl "180+1"]
[EndTime "8:57:35 PDT"]
[Termination "aljado won on time"]

1. e4 {[%clk 0:03:00.9]} 1... e6 {[%clk 0:02:55.3]} 2. d4 {[%clk 0:02:59.2]}
2... d5 {[%clk 0:02:55.9]} 3. e5 {[%clk 0:02:58.5]} 3... c5 {[%clk 0:02:55.9]}
4. c3 {[%clk 0:02:58.8]} 4... Nc6 {[%clk 0:02:56.3]} 5. Nf3 {[%clk 0:02:58.5]}
5... Qb6 {[%clk 0:02:56.9]} 6. Be2 {[%clk 0:02:57.4]} 6... cxd4 {[%clk
0:02:56.5]} 7. cxd4 {[%clk 0:02:56.1]} 7... Nh6 {[%clk 0:02:57.1]} 8. Bxh6
{[%clk 0:02:44.4]} 8... Qxb2 {[%clk 0:02:56.4]} 9. Nbd2 {[%clk 0:02:38.8]} 9...
gxh6 {[%clk 0:02:55.5]} 10. O-O {[%clk 0:02:34.1]} 10... Qb6 {[%clk 0:02:45]}
11. Rb1 {[%clk 0:02:27.5]} 11... Qc7 {[%clk 0:02:44.6]} 12. Nb3 {[%clk
0:02:26.8]} 12... Bd7 {[%clk 0:02:34.9]} 13. Qd2 {[%clk 0:02:23.2]} 13... b6
{[%clk 0:02:31.7]} 14. Rfc1 {[%clk 0:02:20.2]} 14... Bg7 {[%clk 0:02:29.9]} 15.
a4 {[%clk 0:02:05.8]} 15... O-O {[%clk 0:02:28.7]} 16. a5 {[%clk 0:02:00.5]}
16... f6 {[%clk 0:02:27.2]} 17. Bb5 {[%clk 0:01:52.4]} 17... Rac8 {[%clk
0:02:09.9]} 18. exf6 {[%clk 0:01:42.6]} 18... Bxf6 {[%clk 0:02:01.6]} 19. Qxh6
{[%clk 0:01:37.5]} 19... Qd8 {[%clk 0:02:01.3]} 20. Ba6 {[%clk 0:01:30.6]} 20...
Rc7 {[%clk 0:01:30.4]} 21. Bb5 {[%clk 0:01:29.1]} 21... Ne7 {[%clk 0:01:05.6]}
22. Rxc7 {[%clk 0:01:24.2]} 22... Qxc7 {[%clk 0:01:03.7]} 23. Bd3 {[%clk
0:01:22]} 23... Nf5 {[%clk 0:01:01.5]} 24. Qh5 {[%clk 0:01:09]} 24... Qc3 {[%clk
0:00:42.3]} 25. Ne1 {[%clk 0:00:51]} 25... Ba4 {[%clk 0:00:32.5]} 26. g4 {[%clk
0:00:48.1]} 26... Bxb3 {[%clk 0:00:05.8]} 27. gxf5 {[%clk 0:00:47.4]} 27... Bxd4
{[%clk 0:00:04]} 28. fxe6 {[%clk 0:00:31.3]} 28... Bxf2+ {[%clk 0:00:04]} 29.
Kh1 {[%clk 0:00:29.6]} 29... Qg7 {[%clk 0:00:04.5]} 30. Nf3 {[%clk 0:00:19.7]}
30... Ba4 {[%clk 0:00:03.3]} 31. Ng5 {[%clk 0:00:18.3]} 31... h6 {[%clk
0:00:02.7]} 32. Nf7 {[%clk 0:00:16]} 32... Rxf7 {[%clk 0:00:01.3]} 33. exf7+
{[%clk 0:00:14.6]} 33... Qxf7 {[%clk 0:00:01.4]} 34. Qxf7+ {[%clk 0:00:14]}
34... Kxf7 {[%clk 0:00:02]} 35. Rf1 {[%clk 0:00:14]} 1-0

[Event "Early-Titled-Tuesday-Blitz-April-23-2024"]
[Site "Chess.com"]
[Date "2024.04.23"]
[Round "5"]
[White "Heinza9"]
[Black "Happy1712Drummer"]
[Result "0-1"]
[WhiteElo "2316"]
[BlackElo "2516"]
[TimeControl "180+1"]
[EndTime "8:57:36 PDT"]
[Termination "Happy1712Drummer won by resignation"]

1. e4 {[%clk 0:03:00.9]} 1... c5 {[%clk 0:02:58.8]} 2. Nf3 {[%clk 0:03:00.8]}
2... e6 {[%clk 0:02:57.4]} 3. b3 {[%clk 0:03:00.5]} 3... d5 {[%clk 0:02:45.8]}
4. exd5 {[%clk 0:03:00.5]} 4... exd5 {[%clk 0:02:46.7]} 5. Bb5+ {[%clk
0:03:00.5]} 5... Bd7 {[%clk 0:02:46.5]} 6. Bxd7+ {[%clk 0:02:56.6]} 6... Nxd7
{[%clk 0:02:47.4]} 7. O-O {[%clk 0:02:56.6]} 7... Ngf6 {[%clk 0:02:46.8]} 8. Bb2
{[%clk 0:02:53.5]} 8... Be7 {[%clk 0:02:46.9]} 9. d4 {[%clk 0:02:51.9]} 9... O-O
{[%clk 0:02:47]} 10. Re1 {[%clk 0:02:49.2]} 10... Rc8 {[%clk 0:02:46.2]} 11.
Nbd2 {[%clk 0:02:45.2]} 11... Re8 {[%clk 0:02:44.2]} 12. Rc1 {[%clk 0:02:44.4]}
12... c4 {[%clk 0:02:30.8]} 13. c3 {[%clk 0:02:40.6]} 13... b5 {[%clk
0:02:29.8]} 14. b4 {[%clk 0:02:40.1]} 14... a5 {[%clk 0:02:26.5]} 15. a3 {[%clk
0:02:39.3]} 15... Nf8 {[%clk 0:02:19.6]} 16. Qc2 {[%clk 0:02:38.8]} 16... Ne6
{[%clk 0:02:16.7]} 17. g3 {[%clk 0:02:37.1]} 17... Qd6 {[%clk 0:02:16.5]} 18.
Qf5 {[%clk 0:02:34.2]} 18... Ra8 {[%clk 0:02:11.3]} 19. Ne5 {[%clk 0:02:31.2]}
19... g6 {[%clk 0:02:05.6]} 20. Qh3 {[%clk 0:02:25.9]} 20... Kg7 {[%clk
0:02:05.6]} 21. f4 {[%clk 0:02:24.1]} 21... axb4 {[%clk 0:01:42.5]} 22. axb4
{[%clk 0:02:21.6]} 22... Ra2 {[%clk 0:01:42.2]} 23. Rb1 {[%clk 0:02:20.9]} 23...
Rea8 {[%clk 0:01:33.5]} 24. f5 {[%clk 0:02:16.8]} 24... Nf8 {[%clk 0:01:33.6]}
25. g4 {[%clk 0:02:08.3]} 25... h6 {[%clk 0:01:17.3]} 26. Qf3 {[%clk 0:01:54.7]}
26... Bd8 {[%clk 0:01:00]} 27. fxg6 {[%clk 0:01:46.8]} 27... fxg6 {[%clk
0:00:59]} 28. Rf1 {[%clk 0:01:45.2]} 28... Ne6 {[%clk 0:00:56.8]} 29. h4 {[%clk
0:01:39.6]} 29... R8a7 {[%clk 0:00:54.8]} 30. Ba1 {[%clk 0:01:26.1]} 30... Rxd2
{[%clk 0:00:52.6]} 31. Bb2 {[%clk 0:01:17.6]} 31... Ra2 {[%clk 0:00:51.2]} 32.
Rf2 {[%clk 0:00:42.7]} 32... Rxf2 {[%clk 0:00:50]} 33. Qxf2 {[%clk 0:00:40.5]}
33... Qf8 {[%clk 0:00:27.4]} 34. Qf3 {[%clk 0:00:38.6]} 34... Ne4 {[%clk
0:00:25.4]} 35. Qxf8+ {[%clk 0:00:34.1]} 35... Kxf8 {[%clk 0:00:26.3]} 36. Nxg6+
{[%clk 0:00:34.3]} 36... Kg7 {[%clk 0:00:24.6]} 37. Ne5 {[%clk 0:00:34.3]} 37...
Nd2 {[%clk 0:00:23.5]} 38. Rf1 {[%clk 0:00:32.5]} 38... Nxf1 {[%clk 0:00:23.5]}
39. Bc1 {[%clk 0:00:29.2]} 39... Ng3 {[%clk 0:00:20.4]} 40. Be3 {[%clk
0:00:25.7]} 40... Bxh4 {[%clk 0:00:20.4]} 41. Nf3 {[%clk 0:00:24.1]} 41... Bf6
{[%clk 0:00:20.5]} 42. g5 {[%clk 0:00:23]} 42... hxg5 {[%clk 0:00:20.2]} 43. Nh2
{[%clk 0:00:22.2]} 43... Rxh2 {[%clk 0:00:18.3]} 44. Kxh2 {[%clk 0:00:19]} 44...
Nf1+ {[%clk 0:00:18.5]} 0-1

[Event "Early-Titled-Tuesday-Blitz-April-23-2024"]
[Site "Chess.com"]
[Date "2024.04.23"]
[Round "5"]
[White "zverr1"]
[Black "NovozhilovSemen"]
[Result "0-1"]
[WhiteElo "2484"]
[BlackElo "2645"]
[TimeControl "180+1"]
[EndTime "8:57:38 PDT"]
[Termination "NovozhilovSemen won by checkmate"]

1. e4 {[%clk 0:03:00.9]} 1... c5 {[%clk 0:02:59.7]} 2. Nf3 {[%clk 0:03:00.9]}
2... Nc6 {[%clk 0:02:59.5]} 3. d4 {[%clk 0:03:01]} 3... cxd4 {[%clk 0:02:58.9]}
4. Nxd4 {[%clk 0:03:01.9]} 4... Nf6 {[%clk 0:02:59.1]} 5. Nc3 {[%clk 0:03:01.6]}
5... d6 {[%clk 0:02:59.5]} 6. Be2 {[%clk 0:02:50.6]} 6... e5 {[%clk 0:02:56.5]}
7. Nxc6 {[%clk 0:02:48.8]} 7... bxc6 {[%clk 0:02:54.9]} 8. Bg5 {[%clk 0:02:49]}
8... Be7 {[%clk 0:02:54.6]} 9. Bf3 {[%clk 0:02:47.1]} 9... Be6 {[%clk 0:02:53]}
10. O-O {[%clk 0:02:44.1]} 10... O-O {[%clk 0:02:51.4]} 11. Qd2 {[%clk
0:02:42.3]} 11... h6 {[%clk 0:02:51]} 12. Bxf6 {[%clk 0:02:42.2]} 12... Bxf6
{[%clk 0:02:50.9]} 13. Na4 {[%clk 0:02:34.7]} 13... Qc7 {[%clk 0:02:48]} 14. b3
{[%clk 0:02:32.9]} 14... Rfd8 {[%clk 0:02:36.4]} 15. c4 {[%clk 0:02:32.9]} 15...
Bg5 {[%clk 0:02:36.9]} 16. Qd3 {[%clk 0:02:27.3]} 16... g6 {[%clk 0:02:35.4]}
17. Rfd1 {[%clk 0:02:26.6]} 17... f5 {[%clk 0:02:34]} 18. Qc2 {[%clk 0:01:40.8]}
18... f4 {[%clk 0:02:30]} 19. c5 {[%clk 0:01:35.8]} 19... Be7 {[%clk 0:02:16.9]}
20. cxd6 {[%clk 0:01:33.7]} 20... Rxd6 {[%clk 0:02:17.2]} 21. Rxd6 {[%clk
0:01:31.8]} 21... Bxd6 {[%clk 0:02:10.6]} 22. Be2 {[%clk 0:01:18.7]} 22... Rd8
{[%clk 0:02:02]} 23. Rc1 {[%clk 0:01:13.9]} 23... Qf7 {[%clk 0:01:42.8]} 24. Bc4
{[%clk 0:01:01.6]} 24... Bxc4 {[%clk 0:01:37.5]} 25. Qxc4 {[%clk 0:00:41.1]}
25... Ba3 {[%clk 0:01:37.5]} 26. Qxf7+ {[%clk 0:00:15.7]} 26... Kxf7 {[%clk
0:01:38.4]} 27. Ra1 {[%clk 0:00:16.3]} 27... Rd2 {[%clk 0:01:33.3]} 28. h4
{[%clk 0:00:15]} 28... Rc2 {[%clk 0:01:33.3]} 29. f3 {[%clk 0:00:08.7]} 29...
Ke6 {[%clk 0:01:33.1]} 30. Kh2 {[%clk 0:00:07.7]} 30... Be7 {[%clk 0:01:27.9]}
31. Kh3 {[%clk 0:00:07.2]} 31... Ba3 {[%clk 0:01:24.1]} 32. h5 {[%clk
0:00:05.5]} 32... gxh5 {[%clk 0:01:23.1]} 33. Rg1 {[%clk 0:00:05.8]} 33... Rxa2
{[%clk 0:01:22.4]} 34. Kh4 {[%clk 0:00:06.3]} 34... Be7+ {[%clk 0:01:18.1]} 35.
Kxh5 {[%clk 0:00:06.5]} 35... c5 {[%clk 0:01:15.5]} 36. Nc3 {[%clk 0:00:02.8]}
36... Rb2 {[%clk 0:01:14.6]} 37. Nd5 {[%clk 0:00:02.8]} 37... Rxb3 {[%clk
0:01:14.9]} 38. Ra1 {[%clk 0:00:01.9]} 38... Bd6 {[%clk 0:01:10.5]} 39. Ra6
{[%clk 0:00:02]} 39... Rb2 {[%clk 0:01:09.4]} 40. Nc7+ {[%clk 0:00:02.5]} 40...
Kd7 {[%clk 0:01:08.5]} 41. Nd5 {[%clk 0:00:02.6]} 41... Rxg2 {[%clk 0:01:08.4]}
42. Rxa7+ {[%clk 0:00:03.4]} 42... Ke6 {[%clk 0:01:08.5]} 43. Rh7 {[%clk
0:00:03.4]} 43... Rg3 {[%clk 0:01:07.5]} 44. Rxh6+ {[%clk 0:00:03.3]} 44... Kd7
{[%clk 0:01:07.9]} 45. Rh7+ {[%clk 0:00:03.1]} 45... Kc6 {[%clk 0:01:07.6]} 46.
Nc3 {[%clk 0:00:01.6]} 46... Rxf3 {[%clk 0:01:05.9]} 47. Nd5 {[%clk 0:00:02.2]}
47... Rh3+ {[%clk 0:01:06.1]} 48. Kg6 {[%clk 0:00:02.5]} 48... Rxh7 {[%clk
0:01:07]} 49. Kxh7 {[%clk 0:00:03.4]} 49... f3 {[%clk 0:01:07.9]} 50. Kg6 {[%clk
0:00:03]} 50... f2 {[%clk 0:01:08.1]} 51. Ne3 {[%clk 0:00:03.7]} 51... c4 {[%clk
0:01:08.7]} 52. Kf5 {[%clk 0:00:03.8]} 52... c3 {[%clk 0:01:09.1]} 53. Kg4
{[%clk 0:00:03.9]} 53... c2 {[%clk 0:01:08.9]} 54. Kf3 {[%clk 0:00:03.8]} 54...
c1=Q {[%clk 0:01:09.4]} 55. Kxf2 {[%clk 0:00:04.7]} 55... Bc5 {[%clk 0:01:10]}
56. Ke2 {[%clk 0:00:04.9]} 56... Qxe3+ {[%clk 0:01:10.9]} 57. Kd1 {[%clk
0:00:05.5]} 57... Bb4 {[%clk 0:01:11.6]} 58. Kc2 {[%clk 0:00:06.2]} 58... Qd2+
{[%clk 0:01:12.2]} 59. Kb3 {[%clk 0:00:06.2]} 59... Kc5 {[%clk 0:01:12.9]} 60.
Ka4 {[%clk 0:00:06]} 60... Qa2# {[%clk 0:01:13.8]} 0-1

[Event "Early-Titled-Tuesday-Blitz-April-23-2024"]
[Site "Chess.com"]
[Date "2024.04.23"]
[Round "5"]
[White "jinbojinbo"]
[Black "DuleMudule"]
[Result "1-0"]
[WhiteElo "2653"]
[BlackElo "2817"]
[TimeControl "180+1"]
[EndTime "8:57:39 PDT"]
[Termination "jinbojinbo won by checkmate"]

1. c4 {[%clk 0:03:00.9]} 1... e5 {[%clk 0:02:59.4]} 2. Nc3 {[%clk 0:03:00.2]}
2... Nc6 {[%clk 0:03:00]} 3. Nf3 {[%clk 0:02:58.4]} 3... g6 {[%clk 0:03:00]} 4.
g3 {[%clk 0:02:58.1]} 4... Bg7 {[%clk 0:02:59.7]} 5. Bg2 {[%clk 0:02:58.4]} 5...
Nf6 {[%clk 0:03:00.3]} 6. O-O {[%clk 0:02:58.3]} 6... O-O {[%clk 0:03:00.8]} 7.
d3 {[%clk 0:02:57.4]} 7... d6 {[%clk 0:02:59]} 8. Rb1 {[%clk 0:02:54.8]} 8... a5
{[%clk 0:02:58.8]} 9. a3 {[%clk 0:02:54.5]} 9... Re8 {[%clk 0:02:59.2]} 10. b4
{[%clk 0:02:54.4]} 10... axb4 {[%clk 0:03:00.1]} 11. axb4 {[%clk 0:02:54.4]}
11... Nd4 {[%clk 0:03:00.5]} 12. e3 {[%clk 0:02:52.2]} 12... Nxf3+ {[%clk
0:02:51.1]} 13. Bxf3 {[%clk 0:02:51.6]} 13... c6 {[%clk 0:02:51.6]} 14. b5
{[%clk 0:02:48.3]} 14... d5 {[%clk 0:02:51.3]} 15. bxc6 {[%clk 0:01:52.9]} 15...
bxc6 {[%clk 0:02:52.2]} 16. cxd5 {[%clk 0:01:49]} 16... cxd5 {[%clk 0:02:53.1]}
17. e4 {[%clk 0:01:47.3]} 17... Be6 {[%clk 0:02:38.6]} 18. Bg5 {[%clk
0:01:42.1]} 18... d4 {[%clk 0:02:13.6]} 19. Nd5 {[%clk 0:01:41.2]} 19... Bxd5
{[%clk 0:02:11.4]} 20. exd5 {[%clk 0:01:41.2]} 20... Qd6 {[%clk 0:02:11.9]} 21.
Bxf6 {[%clk 0:01:22.9]} 21... Bxf6 {[%clk 0:02:11.3]} 22. Rc1 {[%clk 0:01:23.1]}
22... Kg7 {[%clk 0:02:08.5]} 23. Rc6 {[%clk 0:01:23]} 23... Qa3 {[%clk
0:02:07.9]} 24. Qc2 {[%clk 0:01:19.3]} 24... h5 {[%clk 0:01:59.8]} 25. h4 {[%clk
0:01:18.1]} 25... Rab8 {[%clk 0:01:42]} 26. Rb1 {[%clk 0:01:02.5]} 26... Be7
{[%clk 0:01:29.1]} 27. Kg2 {[%clk 0:00:58.6]} 27... Bd6 {[%clk 0:01:26.8]} 28.
Rxb8 {[%clk 0:00:47.5]} 28... Rxb8 {[%clk 0:01:25.6]} 29. Qd2 {[%clk 0:00:36]}
29... Rb2 {[%clk 0:01:16.7]} 30. Rc2 {[%clk 0:00:33.7]} 30... Rb3 {[%clk
0:01:14.1]} 31. Be4 {[%clk 0:00:28.1]} 31... f5 {[%clk 0:00:58]} 32. Bxf5 {[%clk
0:00:26]} 32... gxf5 {[%clk 0:00:26.3]} 33. Qg5+ {[%clk 0:00:25.1]} 33... Kf7
{[%clk 0:00:26.5]} 34. Qxf5+ {[%clk 0:00:24.9]} 34... Kg7 {[%clk 0:00:26.5]} 35.
Qg5+ {[%clk 0:00:23.7]} 35... Kf7 {[%clk 0:00:23.8]} 36. Qxh5+ {[%clk
0:00:23.8]} 36... Kg7 {[%clk 0:00:24.2]} 37. Qg5+ {[%clk 0:00:23.9]} 37... Kf7
{[%clk 0:00:24.8]} 38. Rc8 {[%clk 0:00:20.6]} 38... Rb7 {[%clk 0:00:17.6]} 39.
Qg8+ {[%clk 0:00:19.7]} 39... Kf6 {[%clk 0:00:17.1]} 40. Qe6+ {[%clk 0:00:19.6]}
40... Kg7 {[%clk 0:00:15.1]} 41. Rg8+ {[%clk 0:00:20]} 41... Kh7 {[%clk
0:00:15.4]} 42. Qg6# {[%clk 0:00:20.3]} 1-0

[Event "Early-Titled-Tuesday-Blitz-April-23-2024"]
[Site "Chess.com"]
[Date "2024.04.23"]
[Round "5"]
[White "WilsonPalencia21"]
[Black "ChessboArt"]
[Result "1-0"]
[WhiteElo "2548"]
[BlackElo "2318"]
[TimeControl "180+1"]
[EndTime "8:57:39 PDT"]
[Termination "WilsonPalencia21 won on time"]

1. d4 {[%clk 0:03:00.9]} 1... Nf6 {[%clk 0:02:54]} 2. c4 {[%clk 0:02:54.1]} 2...
g6 {[%clk 0:02:53.4]} 3. Nf3 {[%clk 0:02:54.4]} 3... Bg7 {[%clk 0:02:53.6]} 4.
Nc3 {[%clk 0:02:55.3]} 4... d6 {[%clk 0:02:53.8]} 5. e4 {[%clk 0:02:55.2]} 5...
O-O {[%clk 0:02:54.3]} 6. Be2 {[%clk 0:02:55.5]} 6... e5 {[%clk 0:02:54.4]} 7.
O-O {[%clk 0:02:55.9]} 7... Nc6 {[%clk 0:02:54.1]} 8. d5 {[%clk 0:02:56.4]} 8...
Ne7 {[%clk 0:02:54.3]} 9. Ne1 {[%clk 0:02:57.1]} 9... Ne8 {[%clk 0:02:54]} 10.
Nd3 {[%clk 0:02:58]} 10... f5 {[%clk 0:02:54.4]} 11. Bd2 {[%clk 0:02:58.2]}
11... Kh8 {[%clk 0:02:24]} 12. Rc1 {[%clk 0:02:56.3]} 12... Ng8 {[%clk
0:02:21.3]} 13. f3 {[%clk 0:02:52]} 13... Bh6 {[%clk 0:02:20.8]} 14. c5 {[%clk
0:02:47.6]} 14... Rf7 {[%clk 0:02:07.1]} 15. cxd6 {[%clk 0:02:47]} 15... cxd6
{[%clk 0:02:06.9]} 16. Bxh6 {[%clk 0:02:46.9]} 16... Nxh6 {[%clk 0:02:06.7]} 17.
Qd2 {[%clk 0:02:46.1]} 17... f4 {[%clk 0:02:06.7]} 18. g4 {[%clk 0:02:46]} 18...
Ng8 {[%clk 0:02:00]} 19. a4 {[%clk 0:02:40.1]} 19... h5 {[%clk 0:01:59.4]} 20.
h3 {[%clk 0:02:34.2]} 20... Qh4 {[%clk 0:01:56.2]} 21. Rf2 {[%clk 0:02:19.9]}
21... Qxh3 {[%clk 0:01:50.9]} 22. Rh2 {[%clk 0:02:15.3]} 22... Qg3+ {[%clk
0:01:47.3]} 23. Kh1 {[%clk 0:02:15.4]} 23... Bxg4 {[%clk 0:01:22.3]} 24. fxg4
{[%clk 0:02:12.9]} 24... f3 {[%clk 0:01:22.4]} 25. Rg1 {[%clk 0:02:10.5]} 25...
Qxh2+ {[%clk 0:00:56.1]} 26. Kxh2 {[%clk 0:02:10.2]} 26... fxe2 {[%clk
0:00:56.7]} 27. Qxe2 {[%clk 0:02:10]} 27... Nef6 {[%clk 0:00:54.9]} 28. gxh5
{[%clk 0:02:04.7]} 28... gxh5 {[%clk 0:00:55.8]} 29. Rg5 {[%clk 0:02:01]} 29...
Nh6 {[%clk 0:00:53.6]} 30. Nf2 {[%clk 0:01:57.7]} 30... Raf8 {[%clk 0:00:47.9]}
31. Ncd1 {[%clk 0:01:53.9]} 31... Kh7 {[%clk 0:00:48]} 32. Ne3 {[%clk
0:01:46.1]} 32... Nxd5 {[%clk 0:00:39]} 33. Nf5 {[%clk 0:01:18.2]} 33... Nf4
{[%clk 0:00:38.4]} 34. Qf3 {[%clk 0:01:13.8]} 34... Nxf5 {[%clk 0:00:34.7]} 35.
exf5 {[%clk 0:01:08.7]} 35... Kh6 {[%clk 0:00:31.5]} 36. Nh3 {[%clk 0:01:07.7]}
36... Rxf5 {[%clk 0:00:16.4]} 37. Rxf5 {[%clk 0:01:05.4]} 37... Rxf5 {[%clk
0:00:17.3]} 38. Nxf4 {[%clk 0:01:02.7]} 38... Rxf4 {[%clk 0:00:14.8]} 39. Qd1
{[%clk 0:00:51.9]} 39... Rd4 {[%clk 0:00:13.1]} 40. Qc1+ {[%clk 0:00:51.2]}
40... Kg6 {[%clk 0:00:11.6]} 41. b3 {[%clk 0:00:51.7]} 41... b6 {[%clk
0:00:08.1]} 42. Qc7 {[%clk 0:00:47.2]} 42... Kf6 {[%clk 0:00:07]} 43. Qxa7
{[%clk 0:00:46.8]} 43... Rb4 {[%clk 0:00:07.5]} 44. Qc7 {[%clk 0:00:44]} 44...
Rxb3 {[%clk 0:00:04.6]} 45. Qxd6+ {[%clk 0:00:42.7]} 45... Kf5 {[%clk
0:00:01.9]} 46. Qd5 {[%clk 0:00:32.9]} 1-0

[Event "Early-Titled-Tuesday-Blitz-April-23-2024"]
[Site "Chess.com"]
[Date "2024.04.23"]
[Round "5"]
[White "MVM2008"]
[Black "Evgeny81"]
[Result "1-0"]
[WhiteElo "2517"]
[BlackElo "2781"]
[TimeControl "180+1"]
[EndTime "8:57:40 PDT"]
[Termination "MVM2008 won on time"]

1. d4 {[%clk 0:03:00.9]} 1... c5 {[%clk 0:03:00.9]} 2. e3 {[%clk 0:02:55.3]}
2... g6 {[%clk 0:03:01.1]} 3. c3 {[%clk 0:02:53.3]} 3... Bg7 {[%clk 0:03:01.7]}
4. h4 {[%clk 0:02:53.4]} 4... Nf6 {[%clk 0:03:01.9]} 5. Bd3 {[%clk 0:02:51.3]}
5... d5 {[%clk 0:03:00.7]} 6. Nd2 {[%clk 0:02:49.4]} 6... Nc6 {[%clk 0:03:00.3]}
7. a3 {[%clk 0:02:36.7]} 7... e5 {[%clk 0:02:57.3]} 8. dxe5 {[%clk 0:02:36.4]}
8... Nxe5 {[%clk 0:02:57]} 9. Bc2 {[%clk 0:02:36.3]} 9... O-O {[%clk 0:02:49.2]}
10. b4 {[%clk 0:02:27.3]} 10... Bg4 {[%clk 0:02:42.8]} 11. f3 {[%clk 0:02:27]}
11... Bf5 {[%clk 0:02:35.9]} 12. Bxf5 {[%clk 0:02:24.6]} 12... gxf5 {[%clk
0:02:36.8]} 13. Qc2 {[%clk 0:02:18.3]} 13... Qc8 {[%clk 0:02:34.3]} 14. bxc5
{[%clk 0:02:10.2]} 14... Qxc5 {[%clk 0:02:28.2]} 15. Nb3 {[%clk 0:02:09]} 15...
Qc4 {[%clk 0:02:25.9]} 16. Ne2 {[%clk 0:01:56.7]} 16... Nd3+ {[%clk 0:02:16.9]}
17. Kd2 {[%clk 0:01:53.2]} 17... Ne4+ {[%clk 0:02:13.5]} 18. fxe4 {[%clk
0:01:51.1]} 18... dxe4 {[%clk 0:02:14.3]} 19. Nbd4 {[%clk 0:01:45.4]} 19... f4
{[%clk 0:02:06.1]} 20. exf4 {[%clk 0:01:37.3]} 20... Rfe8 {[%clk 0:02:01.9]} 21.
Ke3 {[%clk 0:01:32.7]} 21... Rad8 {[%clk 0:01:56.4]} 22. Rb1 {[%clk 0:01:16.8]}
22... Rxd4 {[%clk 0:01:44.2]} 23. Qb3 {[%clk 0:01:03]} 23... Qxb3 {[%clk
0:01:33.2]} 24. Rxb3 {[%clk 0:01:03.9]} 24... Rd7 {[%clk 0:01:29.5]} 25. Ng3
{[%clk 0:00:59.2]} 25... Nxc1 {[%clk 0:01:24.7]} 26. Rxc1 {[%clk 0:00:55.8]}
26... Rd3+ {[%clk 0:01:24.5]} 27. Kf2 {[%clk 0:00:56.2]} 27... e3+ {[%clk
0:01:03.4]} 28. Ke2 {[%clk 0:00:48.4]} 28... Rd2+ {[%clk 0:01:02.7]} 29. Kf3
{[%clk 0:00:47.5]} 29... Rf2+ {[%clk 0:01:00.8]} 30. Kg4 {[%clk 0:00:47.3]}
30... Rxg2 {[%clk 0:00:56.3]} 31. Re1 {[%clk 0:00:47.9]} 31... Rc2 {[%clk
0:00:27.5]} 32. Nf5 {[%clk 0:00:38.2]} 32... Bxc3 {[%clk 0:00:26.5]} 33. Rxe3
{[%clk 0:00:30.7]} 33... Rxe3 {[%clk 0:00:04.2]} 34. Nxe3 {[%clk 0:00:31.6]}
34... Rc1 {[%clk 0:00:04.6]} 35. Rxb7 {[%clk 0:00:29.9]} 35... h6 {[%clk
0:00:04.2]} 36. Rxa7 {[%clk 0:00:24.1]} 36... Bd4 {[%clk 0:00:03.9]} 37. Ra8+
{[%clk 0:00:24.3]} 37... Kh7 {[%clk 0:00:04.3]} 38. Nf5 {[%clk 0:00:17]} 38...
Rg1+ {[%clk 0:00:04.2]} 39. Kh5 {[%clk 0:00:17.3]} 1-0